bitfinex/quotes_BTCUSD_20241027
["timestamp","ask_amount","ask_price","bid_price","bid_amount"]
[1730063401332,0.80297277,67776.0,67775.0,1e-06]
[1730063402184,0.79797277,67776.0,67775.0,1e-06]
[1730063402395,0.79297277,67776.0,67775.0,1e-06]
[1730063403498,0.80297277,67776.0,67775.0,1e-06]
[1730063405970,0.80497277,67776.0,67775.0,1e-06]
[1730063407069,0.80297277,67776.0,67775.0,1e-06]
[1730063407956,0.71487055,67776.0,67775.0,1e-06]
[1730063408831,0.77028681,67776.0,67775.0,1e-06]
[1730063409046,0.88241458,67776.0,67775.0,1e-06]
[1730063410705,0.82699832,67776.0,67775.0,1e-06]
[1730063411420,0.71687055,67776.0,67775.0,1e-06]
[1730063411919,0.82703125,67776.0,67775.0,1e-06]
[1730063412133,0.82503125,67776.0,67775.0,1e-06]
[1730063412347,0.71487055,67776.0,67775.0,1e-06]
[1730063416518,0.70487055,67776.0,67775.0,1e-06]
[1730063416745,0.71487055,67776.0,67775.0,1e-06]
[1730063417613,0.70487055,67776.0,67775.0,1e-06]
[1730063417827,0.71487055,67776.0,67775.0,1e-06]
[1730063418778,0.86178874,67776.0,67775.0,1e-06]
[1730063421201,0.86378874,67776.0,67775.0,1e-06]
[1730063421906,0.71687055,67776.0,67775.0,1e-06]
[1730063423299,0.71487055,67776.0,67775.0,1e-06]
[1730063425080,0.70987055,67776.0,67775.0,1e-06]
[1730063425295,0.71187055,67776.0,67775.0,1e-06]
[1730063425743,0.70687055,67776.0,67775.0,1e-06]
[1730063426409,0.007,67773.0,67764.0,0.075]
[1730063426628,0.42822871,67767.0,67764.0,0.075]
[1730063426853,0.57873252,67767.0,67764.0,0.075]
[1730063427325,0.147568,67765.0,67764.0,0.075]
[1730063427531,0.36429299,67765.0,67764.0,0.075]
[1730063427745,0.3642929,67765.0,67764.0,0.075]
[1730063429301,0.29807181,67765.0,67764.0,0.075]
[1730063429738,0.147581,67759.0,67758.0,0.0755]
[1730063429950,0.147581,67759.0,67754.0,0.1728]
[1730063429951,0.14759,67755.0,67754.0,0.1728]
[1730063430164,0.43460377,67755.0,67754.0,0.1728]
[1730063431366,0.39046248,67755.0,67754.0,0.0755]
[1730063431451,0.43460377,67755.0,67754.0,0.0755]
[1730063431669,0.39046248,67755.0,67754.0,0.0755]
[1730063432134,0.43457711,67755.0,67754.0,0.0755]
[1730063432633,0.43456652,67755.0,67754.0,0.0755]
[1730063433313,0.39046248,67755.0,67754.0,0.0755]
[1730063433552,0.29809381,67755.0,67754.0,0.1749]
[1730063434000,0.29809381,67755.0,67754.0,0.19289924]
[1730063434952,0.29809381,67755.0,67754.0,0.1749]
[1730063436163,0.29809381,67755.0,67739.0,0.005]
[1730063436164,0.147623,67740.0,67739.0,0.005]
[1730063436647,0.147623,67740.0,67739.0,0.1848]
[1730063437134,0.147623,67740.0,67739.0,0.20283454]
[1730063438553,0.295227,67745.0,67740.0,0.005]
[1730063438792,0.147617,67743.0,67740.0,0.005]
[1730063439054,0.147618,67742.0,67741.0,0.01803256]
[1730063439486,0.147618,67742.0,67741.0,0.19783256]
[1730063445571,0.295229,67744.0,67741.0,0.01803256]
[1730063445813,0.147618,67742.0,67741.0,0.01803256]
[1730063446274,0.147618,67742.0,67741.0,0.1761]
[1730063446785,0.147618,67742.0,67741.0,0.19414902]
[1730063447908,0.147618,67742.0,67741.0,0.19497102]
[1730063457347,0.295194,67752.0,67742.0,0.0765]
[1730063457559,0.147603,67749.0,67748.0,0.0765]
[1730063457980,0.147603,67749.0,67748.0,0.09453048]
[1730063458435,0.147603,67749.0,67748.0,0.18883048]
[1730063458651,0.147603,67749.0,67748.0,0.1708]
[1730063458861,0.147603,67749.0,67748.0,0.18883048]
[1730063466344,0.147603,67749.0,67748.0,0.28119915]
[1730063468090,0.147603,67749.0,67748.0,0.18883048]
[1730063468317,0.295199,67751.0,67748.0,0.28119915]
[1730063468533,0.295191,67753.0,67750.0,0.0762]
[1730063468534,0.29519,67753.0,67750.0,0.0762]
[1730063468759,0.147597,67752.0,67751.0,0.26436867]
[1730063469172,0.147597,67752.0,67751.0,0.28238599]
[1730063470385,0.295175,67757.0,67751.0,0.11038599]
[1730063470605,0.147593,67754.0,67752.0,0.1739]
[1730063470825,0.295176,67756.0,67754.0,0.0822]
[1730063470826,0.14759,67755.0,67754.0,0.0822]
[1730063471304,0.14759,67755.0,67754.0,0.10020997]
[1730063473403,0.14759,67755.0,67754.0,0.19257864]
[1730063473633,0.147588,67756.0,67755.0,0.1717]
[1730063474072,0.147588,67756.0,67755.0,0.18970752]
[1730063474331,0.147588,67756.0,67755.0,0.1717]
[1730063474554,0.147588,67756.0,67755.0,0.18969716]
[1730063475967,0.0499043,67769.0,67755.0,0.18969716]
[1730063476218,0.442721,67763.0,67762.0,0.09236867]
[1730063476461,0.442721,67763.0,67762.0,0.26406867]
[1730063476696,0.442721,67763.0,67762.0,0.19223166]
[1730063477418,0.295138,67765.0,67762.0,0.28460033]
[1730063477655,0.147573,67763.0,67762.0,0.28460033]
[1730063478659,0.3450283,67769.0,67763.0,0.1717]
[1730063478660,0.0499043,67769.0,67763.0,0.1717]
[1730063478910,0.0499043,67769.0,67764.0,0.1717]
[1730063478911,0.295127,67768.0,67764.0,0.1717]
[1730063479148,0.442689,67768.0,67767.0,0.09236867]
[1730063479630,0.442689,67768.0,67767.0,0.11287741]
[1730063481032,0.147561,67769.0,67767.0,0.11287741]
[1730063481270,0.147561,67769.0,67768.0,0.1717]
[1730063481733,0.147561,67769.0,67768.0,0.19220594]
[1730063494467,0.147561,67769.0,67768.0,0.09610594]
[1730063495798,0.147561,67769.0,67768.0,0.09692794]
[1730063498542,0.147561,67769.0,67768.0,0.02132794]
[1730063501885,0.147561,67769.0,67768.0,0.000822]
[1730063502306,0.147561,67769.0,67768.0,0.02130631]
[1730063502513,0.147561,67769.0,67768.0,0.000822]
[1730063502726,0.147561,67769.0,67768.0,0.02130631]
[1730063502925,0.147561,67769.0,67768.0,0.000822]
[1730063503125,0.147561,67769.0,67768.0,0.02130835]
[1730063506074,0.147561,67769.0,67768.0,0.05087835]
[1730063506291,0.147561,67769.0,67768.0,0.02130835]
[1730063508022,0.147561,67769.0,67768.0,0.0274797]
[1730063508265,0.147561,67769.0,67768.0,0.000822]
[1730063508551,0.147561,67769.0,67768.0,0.02746617]
[1730063526662,0.147561,67769.0,67768.0,0.0716942]
[1730063530877,0.147561,67769.0,67768.0,0.02746617]
[1730063532424,0.147561,67769.0,67768.0,0.07178664]
[1730063533571,0.147561,67769.0,67768.0,0.02746617]
[1730063534008,0.147561,67769.0,67768.0,0.07178643]
[1730063534536,0.147561,67769.0,67768.0,0.02746617]
[1730063535028,0.147561,67769.0,67768.0,0.07178638]
[1730063536960,0.147561,67769.0,67768.0,0.02746617]
[1730063537169,0.147561,67769.0,67768.0,0.0717862]
[1730063538064,0.147561,67769.0,67768.0,0.02746617]
[1730063538520,0.147561,67769.0,67768.0,0.07178615]
[1730063539233,0.147561,67769.0,67768.0,0.02746617]
[1730063539434,0.147561,67769.0,67768.0,0.07178611]
[1730063539887,0.147561,67769.0,67768.0,0.02746617]
[1730063540098,0.147561,67769.0,67768.0,0.07178605]
[1730063540319,0.147561,67769.0,67768.0,0.02746617]
[1730063540972,0.147561,67769.0,67768.0,0.07178619]
[1730063541427,0.147561,67769.0,67768.0,0.02746617]
[1730063544004,0.147561,67769.0,67768.0,0.07178633]
[1730063544442,0.147561,67769.0,67768.0,0.02746617]
[1730063545313,0.147561,67769.0,67768.0,0.25754928]
[1730063545568,0.147561,67769.0,67768.0,0.09394668]
[1730063545804,0.147561,67769.0,67768.0,0.02746617]
[1730063561656,0.147554,67772.0,67768.0,0.11983484]
[1730063561870,0.001644,67775.0,67772.0,0.230551]
[1730063562100,0.001644,67775.0,67774.0,0.23991767]
[1730063562538,0.001644,67775.0,67774.0,0.26651642]
[1730063563194,0.001644,67775.0,67774.0,0.11896742]
[1730063566348,0.001644,67775.0,67774.0,0.18538025]
[1730063566602,0.001644,67775.0,67774.0,0.26651642]
[1730063566802,0.001644,67775.0,67774.0,0.60148261]
[1730063567011,0.001644,67775.0,67774.0,0.57933343]
[1730063567425,0.001644,67775.0,67774.0,0.41591769]
[1730063567865,0.001644,67775.0,67774.0,0.43174036]
[1730063568084,0.001644,67775.0,67774.0,0.57928936]
[1730063568292,0.001644,67775.0,67774.0,0.34951642]
[1730063569375,0.001644,67775.0,67774.0,0.20196742]
[1730063570527,0.001644,67775.0,67774.0,0.24621113]
[1730063572308,0.149191,67775.0,67774.0,0.24621113]
[1730063573247,0.149191,67775.0,67774.0,0.15384246]
[1730063574217,0.149191,67775.0,67774.0,0.10959875]
[1730063576410,0.149191,67775.0,67774.0,0.10542075]
[1730063585833,0.149191,67775.0,67774.0,0.02242075]
[1730063586472,0.149191,67775.0,67774.0,0.05199075]
[1730063586674,0.149191,67775.0,67774.0,0.02242075]
[1730063604379,0.149191,67775.0,67774.0,0.06668074]
[1730063605235,0.149191,67775.0,67774.0,0.02242075]
[1730063605441,0.149191,67775.0,67774.0,0.06668074]
[1730063607261,0.149191,67775.0,67774.0,0.02242075]
[1730063614549,0.149191,67775.0,67774.0,0.34242075]
[1730063618548,0.149191,67775.0,67774.0,0.40886479]
[1730063619667,0.149191,67775.0,67774.0,0.34242075]
[1730063619883,0.149191,67775.0,67774.0,0.40886942]
[1730063622338,0.149191,67775.0,67774.0,0.572411]
[1730063625324,0.149191,67775.0,67774.0,0.38673352]
[1730063625570,0.149191,67775.0,67774.0,0.34242075]
[1730063625571,0.325891,67775.0,67774.0,0.34242075]
[1730063633952,0.246091,67775.0,67774.0,0.34242075]
[1730063635829,0.149191,67775.0,67774.0,0.34242075]
[1730063646086,0.001644,67775.0,67774.0,0.34242075]
[1730063648785,0.149191,67775.0,67774.0,0.34242075]
[1730063649075,0.001644,67775.0,67774.0,0.34242075]
[1730063650458,0.001644,67775.0,67774.0,0.58806975]
[1730063651363,0.001644,67775.0,67774.0,0.44052075]
[1730063652248,0.001644,67775.0,67774.0,0.58806975]
[1730063653411,0.001644,67775.0,67774.0,0.71665859]
[1730063653626,0.001644,67775.0,67774.0,0.67238668]
[1730063654083,0.001644,67775.0,67774.0,0.67238646]
[1730063654314,0.001644,67775.0,67774.0,0.66776975]
[1730063654543,0.001644,67775.0,67774.0,0.67238646]
[1730063659242,0.001644,67775.0,67774.0,0.52483746]
[1730063659454,0.001644,67775.0,67774.0,0.67238646]
[1730063661890,0.001644,67775.0,67774.0,0.52022075]
[1730063662101,0.001644,67775.0,67774.0,0.52483746]
[1730063665687,0.001644,67775.0,67774.0,0.66776975]
[1730063665907,0.001644,67775.0,67774.0,0.67238642]
[1730063669540,0.001644,67775.0,67774.0,0.66776975]
[1730063669772,0.001644,67775.0,67774.0,0.67238642]
[1730063671171,0.001644,67775.0,67774.0,0.90217332]
[1730063673043,0.001644,67775.0,67774.0,0.84077481]
[1730063675168,0.001644,67775.0,67774.0,0.84075696]
[1730063679812,0.001644,67775.0,67774.0,0.84076234]
[1730063680472,0.001644,67775.0,67774.0,0.92927924]
[1730063681124,0.001644,67775.0,67774.0,0.84076234]
[1730063681343,0.001644,67775.0,67774.0,0.92927872]
[1730063681567,0.001644,67775.0,67774.0,0.76590665]
[1730063681787,0.001644,67775.0,67774.0,0.92928357]
[1730063683353,0.001644,67775.0,67774.0,0.84076515]
[1730063685337,0.001644,67775.0,67774.0,0.8407649]
[1730063689176,0.001644,67775.0,67774.0,0.84076489]
[1730063692858,0.001644,67775.0,67774.0,0.95141292]
[1730063697511,0.001644,67775.0,67774.0,0.84076489]
[1730063698871,0.001644,67775.0,67774.0,0.74266489]
[1730063701163,0.001644,67775.0,67774.0,0.74266491]
[1730063703193,0.001644,67775.0,67774.0,0.73804848]
[1730063703410,0.001644,67775.0,67774.0,0.74266491]
[1730063704287,0.001644,67775.0,67774.0,0.74278592]
[1730063710986,0.001644,67775.0,67774.0,0.73816949]
[1730063711202,0.001644,67775.0,67774.0,0.74278593]
[1730063713791,0.001644,67775.0,67774.0,0.74282808]
[1730063714653,0.001644,67775.0,67774.0,0.74282807]
[1730063718538,0.001644,67775.0,67774.0,0.73821164]
[1730063718783,0.001644,67775.0,67774.0,0.74282807]
[1730063723371,0.001644,67775.0,67774.0,1.11830055]
[1730063723579,0.001644,67775.0,67774.0,1.25489052]
[1730063724050,0.001644,67775.0,67774.0,1.25027409]
[1730063724260,0.001644,67775.0,67774.0,1.02131545]
[1730063724496,0.001644,67775.0,67774.0,1.25027409]
[1730063724708,0.001644,67775.0,67774.0,1.02593136]
[1730063724910,0.001644,67775.0,67774.0,1.25489]
[1730063725122,0.001644,67775.0,67774.0,1.02593136]
[1730063728226,0.001644,67775.0,67774.0,1.02793136]
[1730063728667,0.001644,67775.0,67774.0,1.02593136]
[1730063729655,0.001644,67775.0,67774.0,1.05549136]
[1730063730944,0.001644,67775.0,67774.0,1.02593136]
[1730063731154,0.001644,67775.0,67774.0,1.1587075]
[1730063732689,0.001644,67775.0,67774.0,0.86238947]
[1730063732906,0.001644,67775.0,67774.0,1.1605059]
[1730063733145,0.001644,67775.0,67774.0,1.1585059]
[1730063733358,0.001644,67775.0,67774.0,1.25087457]
[1730063733565,0.001644,67775.0,67774.0,1.25287457]
[1730063734716,0.001644,67775.0,67774.0,1.1605059]
[1730063734935,0.001644,67775.0,67774.0,1.24825866]
[1730063735161,0.001644,67775.0,67774.0,1.11549893]
[1730063736057,0.001644,67775.0,67774.0,1.12011485]
[1730063736282,0.001644,67775.0,67774.0,1.25287458]
[1730063736495,0.001644,67775.0,67774.0,1.16050591]
[1730063736716,0.001644,67775.0,67774.0,1.02774618]
[1730063737188,0.001644,67775.0,67774.0,1.12011485]
[1730063737421,0.001644,67775.0,67774.0,1.25287458]
[1730063737628,0.001644,67775.0,67774.0,1.12011485]
[1730063738306,0.001644,67775.0,67774.0,1.11811485]
[1730063739611,0.001644,67775.0,67774.0,1.14767485]
[1730063739829,0.001644,67775.0,67774.0,1.11811485]
[1730063740037,0.001644,67775.0,67774.0,1.11807062]
[1730063741544,0.001644,67775.0,67774.0,1.12007062]
[1730063743055,0.001644,67775.0,67774.0,1.11807062]
[1730063743989,0.001644,67775.0,67774.0,1.11807061]
[1730063746840,0.001644,67775.0,67774.0,1.12007061]
[1730063747267,0.001644,67775.0,67774.0,1.12005826]
[1730063748379,0.001644,67775.0,67774.0,1.11805826]
[1730063752052,0.001644,67775.0,67774.0,1.11806544]
[1730063752503,0.001644,67775.0,67774.0,1.11806545]
[1730063754468,0.001644,67775.0,67774.0,0.84639678]
[1730063755364,0.001644,67775.0,67774.0,0.93876545]
[1730063755607,0.001644,67775.0,67774.0,0.93876553]
[1730063756246,0.001644,67775.0,67774.0,0.91716678]
[1730063756458,0.001644,67775.0,67774.0,0.93364207]
[1730063756912,0.001644,67775.0,67774.0,0.91064207]
[1730063759420,0.001644,67775.0,67774.0,0.90602607]
[1730063759626,0.001644,67775.0,67774.0,0.91064214]
[1730063760934,0.001644,67775.0,67774.0,0.91070233]
[1730063761942,0.001644,67775.0,67774.0,0.90608626]
[1730063762170,0.001644,67775.0,67774.0,0.91070233]
[1730063764740,0.001644,67775.0,67774.0,0.91074613]
[1730063768112,0.001644,67775.0,67774.0,1.04355022]
[1730063769620,0.001644,67775.0,67774.0,0.95135052]
[1730063772169,0.001644,67775.0,67774.0,0.65329771]
[1730063772382,0.001644,67775.0,67774.0,0.51041786]
[1730063772383,0.149191,67775.0,67774.0,0.51041786]
[1730063772599,0.001644,67775.0,67774.0,0.51041786]
[1730063773505,0.001644,67775.0,67774.0,0.50580179]
[1730063773735,0.001644,67775.0,67774.0,0.51041814]
[1730063773941,0.001644,67775.0,67774.0,0.65796714]
[1730063774571,0.001644,67775.0,67774.0,0.51041814]
[1730063775002,0.001644,67775.0,67774.0,0.50541814]
[1730063775210,0.001644,67775.0,67774.0,0.51041814]
[1730063775420,0.001644,67775.0,67774.0,0.65796714]
[1730063777546,0.001644,67775.0,67774.0,0.76865669]
[1730063778031,0.001644,67775.0,67774.0,0.61610769]
[1730063778232,0.240391,67775.0,67774.0,0.40833141]
[1730063778436,0.321291,67775.0,67774.0,0.33729729]
[1730063779764,0.321291,67775.0,67774.0,0.36685729]
[1730063779986,0.321291,67775.0,67774.0,0.33729729]
[1730063794373,0.240391,67775.0,67774.0,0.33729729]
[1730063832932,0.149191,67775.0,67774.0,0.33729729]
[1730063833591,0.149191,67775.0,67774.0,0.320822]
[1730063833832,0.149191,67775.0,67774.0,0.33533181]
[1730063844585,0.144191,67775.0,67774.0,0.33533181]
[1730063848772,0.139191,67775.0,67774.0,0.33533181]
[1730063852324,0.139191,67775.0,67774.0,0.41703181]
[1730063853163,0.140835,67775.0,67774.0,0.41703181]
[1730063853490,0.135835,67775.0,67774.0,0.41703181]
[1730063858507,0.001644,67775.0,67774.0,0.41703181]
[1730063859538,0.149191,67775.0,67774.0,0.41703181]
[1730063860137,0.001644,67775.0,67774.0,0.51233181]
[1730063861124,0.149191,67775.0,67774.0,0.51233181]
[1730063865493,0.149191,67775.0,67774.0,0.41703181]
[1730063881094,0.149191,67775.0,67774.0,0.33533181]
[1730063902372,0.001644,67775.0,67774.0,0.51413181]
[1730063902618,0.001644,67775.0,67774.0,0.91765637]
[1730063902857,0.001644,67775.0,67774.0,1.02846495]
[1730063903099,0.001644,67775.0,67774.0,1.02845312]
[1730063903324,0.001644,67775.0,67774.0,1.00625202]
[1730063905125,0.001644,67775.0,67774.0,1.02845312]
[1730063905813,0.001644,67775.0,67774.0,1.16552885]
[1730063906032,0.001644,67775.0,67774.0,1.29849915]
[1730063906254,0.001644,67775.0,67774.0,1.16552885]
[1730063907369,0.001644,67775.0,67774.0,1.07316018]
[1730063908242,0.001644,67775.0,67774.0,1.16552885]
[1730063909420,0.001644,67775.0,67774.0,1.07316018]
[1730063909864,0.001644,67775.0,67774.0,1.16552885]
[1730063910105,0.001644,67775.0,67774.0,1.07316018]
[1730063911002,0.001644,67775.0,67774.0,1.16552885]
[1730063911230,0.001644,67775.0,67774.0,1.27603888]
[1730063911915,0.001644,67775.0,67774.0,1.28603888]
[1730063912146,0.001644,67775.0,67774.0,1.17752885]
[1730063913266,0.001644,67775.0,67774.0,1.17552885]
[1730063915267,0.001644,67775.0,67774.0,1.17500438]
[1730063918271,0.001644,67775.0,67774.0,1.28539734]
[1730063919011,0.001644,67775.0,67774.0,1.19302867]
[1730063919473,0.001644,67775.0,67774.0,1.28539734]
[1730063919933,0.001644,67775.0,67774.0,1.28528578]
[1730063921532,0.001644,67775.0,67774.0,1.19291711]
[1730063922213,0.001644,67775.0,67774.0,1.08253677]
[1730063922433,0.001644,67775.0,67774.0,1.08250541]
[1730063923817,0.001644,67775.0,67774.0,1.17487408]
[1730063924812,0.001644,67775.0,67774.0,1.17485848]
[1730063925957,0.001644,67775.0,67774.0,1.08248981]
[1730063927301,0.001644,67775.0,67774.0,1.17076356]
[1730063928650,0.001644,67775.0,67774.0,1.17076356]
[1730063929584,0.001644,67775.0,67774.0,1.17075506]
[1730063931436,0.001644,67775.0,67774.0,1.082481]
[1730063934943,0.001644,67775.0,67774.0,1.17484967]
[1730063935419,0.001644,67775.0,67774.0,1.19282357]
[1730063939303,0.001644,67775.0,67774.0,1.082481]
[1730063944315,0.001644,67775.0,67774.0,1.12861953]
[1730063945729,0.001644,67775.0,67774.0,1.2229882]
[1730063946411,0.001644,67775.0,67774.0,1.2459882]
[1730063946873,0.0497555,67788.0,67774.0,1.2459882]
[1730063946874,0.0497555,67788.0,67787.0,0.15252]
[1730063947064,0.0497555,67788.0,67787.0,0.43960994]
[1730063947341,0.001644,67791.0,67790.0,0.147514]
[1730063947577,0.001644,67791.0,67790.0,0.23988267]
[1730063947810,0.001644,67791.0,67790.0,0.25426817]
[1730063948036,0.001644,67791.0,67790.0,0.32059436]
[1730063948270,0.001644,67791.0,67790.0,0.41760095]
[1730063949197,0.001644,67791.0,67790.0,0.50603587]
[1730063950092,0.001644,67791.0,67790.0,0.41760095]
[1730063950334,0.001644,67791.0,67790.0,0.5281446]
[1730063950582,0.001644,67791.0,67790.0,0.41760095]
[1730063950858,0.001644,67791.0,67790.0,0.85924841]
[1730063951098,0.001644,67791.0,67790.0,0.74870476]
[1730063951568,0.001644,67791.0,67790.0,0.74872945]
[1730063952033,0.001644,67791.0,67790.0,0.75072945]
[1730063952270,0.001644,67791.0,67790.0,0.88148981]
[1730063952487,0.001644,67791.0,67790.0,0.74872945]
[1730063954059,0.001644,67791.0,67790.0,0.75072945]
[1730063954287,0.001644,67791.0,67790.0,0.9951431]
[1730063954522,0.001644,67791.0,67790.0,0.88372945]
[1730063957687,0.001644,67791.0,67790.0,1.01622716]
[1730063959306,0.001644,67791.0,67790.0,0.88372945]
[1730063959776,0.001644,67791.0,67790.0,1.01622716]
[1730063959997,0.001644,67791.0,67790.0,0.88372945]
[1730063960216,0.001644,67791.0,67790.0,1.01617568]
[1730063960896,0.001644,67791.0,67790.0,1.01572914]
[1730063961465,0.001644,67793.0,67790.0,1.01572914]
[1730063961466,0.001644,67793.0,67791.0,0.017]
[1730063961705,0.001644,67793.0,67791.0,0.86492232]
[1730063961920,0.0499913,67805.0,67804.0,0.324083]
[1730063962169,0.0499913,67805.0,67804.0,0.56695548]
[1730063962407,0.001644,67808.0,67807.0,0.005]
[1730063962632,0.001644,67808.0,67807.0,0.39534948]
[1730063963107,0.001644,67808.0,67807.0,0.40932247]
[1730063966807,0.001644,67808.0,67807.0,0.63073612]
[1730063967025,0.001644,67808.0,67807.0,0.40932247]
[1730063970868,0.001644,67808.0,67807.0,0.43888247]
[1730063977260,0.001644,67808.0,67807.0,0.44352158]
[1730063979963,0.001644,67808.0,67807.0,0.66493523]
[1730063980202,0.001644,67808.0,67807.0,0.44352158]
[1730063996758,0.001644,67808.0,67807.0,0.71713159]
[1730063998500,0.001644,67808.0,67807.0,0.60665184]
[1730064000025,0.001644,67808.0,67807.0,0.51428317]
[1730064001122,0.001644,67808.0,67807.0,0.73569682]
[1730064001340,0.001644,67808.0,67807.0,0.51428317]
[1730064002910,0.001644,67808.0,67807.0,0.51444036]
[1730064006583,0.001644,67808.0,67807.0,0.64714381]
[1730064006804,0.001644,67808.0,67807.0,0.6473961]
[1730064008804,0.001644,67808.0,67807.0,0.86880975]
[1730064009023,0.001644,67808.0,67807.0,0.6473961]
[1730064010844,0.001644,67808.0,67807.0,0.6178361]
[1730064011797,0.001644,67808.0,67807.0,0.48501954]
[1730064016829,0.001644,67808.0,67807.0,0.61788987]
[1730064017530,0.001644,67808.0,67807.0,0.69618987]
[1730064017799,0.001644,67808.0,67807.0,0.65568821]
[1730064019600,0.001644,67808.0,67807.0,0.68522821]
[1730064022100,0.001644,67808.0,67807.0,0.7028937]
[1730064025737,0.001644,67808.0,67807.0,0.61052503]
[1730064025964,0.001644,67808.0,67807.0,0.7028937]
[1730064026912,0.001644,67808.0,67807.0,1.4774733]
[1730064027164,0.001644,67817.0,67809.0,0.493613]
[1730064027407,0.001644,67817.0,67809.0,1.29733235]
[1730064027645,0.001644,67817.0,67809.0,1.1012776]
[1730064027864,0.001644,67817.0,67809.0,1.14035354]
[1730064028072,0.001644,67817.0,67809.0,1.14235354]
[1730064029221,0.001672,67821.0,67820.0,0.005]
[1730064029463,0.001672,67821.0,67820.0,0.66377944]
[1730064029685,0.001672,67821.0,67820.0,0.7749219]
[1730064031030,0.001672,67821.0,67820.0,0.8749219]
[1730064031265,0.001672,67821.0,67820.0,0.8769219]
[1730064031938,0.001672,67821.0,67820.0,0.8749219]
[1730064032456,0.001672,67821.0,67820.0,0.8769219]
[1730064034270,0.001672,67821.0,67820.0,0.98735413]
[1730064037753,0.001672,67821.0,67820.0,0.8769219]
[1730064038204,0.001672,67821.0,67820.0,0.8869219]
[1730064041990,0.0925,67832.0,67821.0,0.287446]
[1730064042208,0.0925,67832.0,67821.0,0.60137644]
[1730064042459,0.0925,67832.0,67821.0,0.61694919]
[1730064044420,0.0925,67832.0,67821.0,0.72726736]
[1730064047126,0.0925,67832.0,67821.0,0.71726736]
[1730064047351,0.0925,67832.0,67821.0,0.72726736]
[1730064049560,0.0925,67832.0,67821.0,0.72668027]
[1730064049764,0.0925,67832.0,67821.0,0.72568027]
[1730064049981,0.0925,67832.0,67821.0,0.72668027]
[1730064051713,0.0925,67832.0,67821.0,0.72468027]
[1730064054430,0.0925,67832.0,67821.0,0.72466949]
[1730064056861,0.0925,67832.0,67821.0,0.72468624]
[1730064057993,0.0925,67832.0,67821.0,0.72550824]
[1730064059088,0.0925,67832.0,67821.0,0.72553125]
[1730064059753,0.0925,67832.0,67821.0,0.72053125]
[1730064060209,0.0925,67832.0,67821.0,0.72253125]
[1730064060442,0.0925,67832.0,67821.0,0.72053125]
[1730064060701,0.0925,67832.0,67821.0,0.71553125]
[1730064060923,0.0925,67832.0,67821.0,0.60522243]
[1730064061139,0.0925,67832.0,67821.0,0.71554332]
[1730064061356,0.0925,67832.0,67821.0,0.6975911]
[1730064066457,0.0925,67832.0,67821.0,0.74368382]
[1730064070523,0.0925,67832.0,67821.0,0.87605441]
[1730064071422,0.0925,67832.0,67821.0,0.74368382]
[1730064072100,0.0925,67832.0,67821.0,0.74399567]
[1730064075949,0.0925,67832.0,67821.0,0.74599567]
[1730064076834,0.0925,67832.0,67821.0,0.74615399]
[1730064077490,0.0925,67832.0,67821.0,0.74415399]
[1730064079477,0.0925,67832.0,67821.0,0.97484125]
[1730064080151,0.0925,67832.0,67821.0,0.74615399]
[1730064080363,0.0925,67832.0,67821.0,0.97484125]
[1730064081729,0.0925,67832.0,67821.0,0.97495723]
[1730064082846,0.0925,67832.0,67821.0,1.07285723]
[1730064083306,0.0925,67832.0,67821.0,1.26893287]
[1730064091465,0.0925,67832.0,67821.0,1.26693287]
[1730064095058,0.03334624,67832.0,67831.0,0.147425]
[1730064095284,0.03334624,67832.0,67831.0,0.57202037]
[1730064095499,0.03334624,67832.0,67831.0,0.58697173]
[1730064104432,0.03499024,67832.0,67831.0,0.58697173]
[1730064105102,0.03499024,67832.0,67831.0,0.47627654]
[1730064105539,0.001644,67832.0,67831.0,0.79005886]
[1730064105766,0.001644,67832.0,67831.0,0.56864521]
[1730064106038,0.001644,67832.0,67831.0,0.57325762]
[1730064107563,0.001644,67832.0,67831.0,0.56864521]
[1730064107814,0.001644,67832.0,67831.0,0.5732576]
[1730064115211,0.001644,67832.0,67831.0,0.57325023]
[1730064115657,0.001644,67832.0,67831.0,0.57325016]
[1730064119948,0.001644,67832.0,67831.0,0.48086914]
[1730064122642,0.001644,67832.0,67831.0,0.48086913]
[1730064126154,0.001644,67832.0,67831.0,0.47625682]
[1730064126405,0.001644,67832.0,67831.0,0.48086913]
[1730064127327,0.001644,67832.0,67831.0,0.48169113]
[1730064128013,0.001644,67832.0,67831.0,0.48168077]
[1730064132288,0.001644,67832.0,67831.0,0.48168073]
[1730064132715,0.001644,67832.0,67831.0,0.48167906]
[1730064137865,0.001644,67832.0,67831.0,0.47706679]
[1730064138120,0.001644,67832.0,67831.0,0.48167911]
[1730064142051,0.001644,67832.0,67831.0,0.48169654]
[1730064147860,0.001644,67832.0,67831.0,0.48169657]
[1730064149288,0.001644,67832.0,67831.0,0.47708422]
[1730064149495,0.001644,67832.0,67831.0,0.48169654]
[1730064159585,0.001644,67832.0,67831.0,0.48169661]
[1730064160259,0.001644,67832.0,67831.0,0.47708422]
[1730064160505,0.001644,67832.0,67831.0,0.48169661]
[1730064160980,0.001644,67832.0,67831.0,0.47708422]
[1730064161227,0.001644,67832.0,67831.0,0.48172248]
[1730064165892,0.001644,67832.0,67831.0,0.48171504]
[1730064169231,0.001644,67832.0,67831.0,0.47710265]
[1730064169451,0.001644,67832.0,67831.0,0.48171503]
[1730064169904,0.001644,67832.0,67831.0,0.47710265]
[1730064170176,0.001644,67832.0,67831.0,0.48171503]
[1730064170610,0.001644,67832.0,67831.0,0.48171099]
[1730064172857,0.001644,67832.0,67831.0,0.481711]
[1730064175558,0.001644,67832.0,67831.0,0.48171284]
[1730064176471,0.001644,67832.0,67831.0,0.47710045]
[1730064176680,0.001644,67832.0,67831.0,0.48171284]
[1730064177309,0.001644,67832.0,67831.0,0.31831456]
[1730064181178,0.001644,67832.0,67831.0,0.48171482]
[1730064182105,0.001644,67832.0,67831.0,0.31831456]
[1730064195924,0.001644,67832.0,67831.0,0.62112821]
[1730064196127,0.001644,67832.0,67831.0,0.39971456]
[1730064196340,0.001644,67832.0,67831.0,0.65550151]
[1730064196562,0.001644,67832.0,67831.0,0.56313284]
[1730064201571,0.001644,67832.0,67831.0,0.56313281]
[1730064203395,0.001644,67832.0,67831.0,0.69594258]